Workbook

Sheet Valor Global
A7: PORTARIA Nº 213 DE 25/09/2017 - SLTI/MPOG
A8: QUADRO DEMONSTRATIVO - VALOR GLOBAL
A10: Valor global (Serviços de conservação e limpeza, Auxiliar de Manutenção, Copeiragem e Recepção)
A11: Item | B11: Descrição | C11: Und | D11: Quant. | E11: Preço Unit. Mensal | F11: Valor (R$)
A12: 1 | B12: Conservação e Limpeza
A13: 1.1 | B13: Área Interna | C13: m² | D13: ='Cálculo das Áreas'!C16 -> 2404.3 | E13: ='Complemento Serviço Limpeza'!B43 -> 2.6 | F13: ='Quadro Resumo'!G12+'Quadro Resumo'!G15 -> 6251.18 | H13: =D13*E13 -> 6251.18
A14: 1.2 | B14: Área Externa | C14: m² | D14: ='Cálculo das Áreas'!D16 -> 217761.15 | E14: ='Complemento Serviço Limpeza'!B44 -> 0.12 | F14: ='Quadro Resumo'!G13+'Quadro Resumo'!G16 -> 26131.34 | H14: =D14*E14 -> 26131.34 | I14: =D14*E14 -> 26131.34
A15: 1.3 | B15: Esquadrias Externa e Interna | C15: m² | D15: ='Cálculo das Áreas'!E16 -> 50.33 | E15: ='Complemento Serviço Limpeza'!B45 -> 0.83 | F15: ='Quadro Resumo'!G17+'Quadro Resumo'!G14 -> 41.78 | H15: 41.78
A16: VALOR TOTAL MENSAL | F16: =SUM(F13:F15) -> 32424.3 | H16: =SUM(H13:H15) -> 32424.3
A17: VALOR TOTAL GLOBAL (12 MESES) | F17: =F16*12 -> 389091.6 | H17: =H16*12 -> 389091.6
D20: 217761.15 | E20: 0.1055866828 | F20: =D20*E20 -> 22992.68
H25: 28681.31

Sheet Quadro Resumo
A7: PORTARIA Nº 07 DE 09/03/2011 - SLTI/MPOG
A8: QUADRO RESUMO - VALOR MENSAL DOS SERVIÇOS DE CONSERVAÇÃO E LIMPEZA- Prestação de serviços no CIRPA - Bebedouro (3º CIB)
A10: Item | B10: Tipo de Serviço | C10: Valor Proposto por profissional | D10: Quant. Prof. | E10: Valor Proposto por Àrea (m²) | F10: Quant. de Área Total por Tipo de Serviço (m²) | G10: Valor Mensal por Tipo de Serviço
B11: (A) | C11: ( B ) | D11: ( C ) | E11: ( D ) | F11: ( E ) | G11: (F = D x E)
A12: 1 | B12: Serviços de Limpeza e Conservação - Área Interna - Encarregado | C12: =Encarregado!E130 -> 3249.81 | E12: ='Complemento Serviço Limpeza'!F16 -> 0.27 | F12: =Servente!D16 -> 2404.3 | G12: =E12*F12 -> 649.16
A13: 3 | B13: Serviços de Limpeza e Conservação - Área Externa - Encarregado | C13: =Encarregado!E130 -> 3249.81 | E13: ='Complemento Serviço Limpeza'!F24 -> 0.02 | F13: =Servente!D17 -> 217761.15 | G13: 4355.22
A14: 4 | B14: Serviços de Limpeza e Conservação - Esquadrias Internas e Externas - Encarregado | C14: =Encarregado!E130 -> 3249.81 | E14: ='Complemento Serviço Limpeza'!G33 -> 0.29 | F14: =Servente!D18 -> 50.33 | G14: 14.6
A15: 5 | B15: Serviços de Limpeza e Conservação - Área Interna - Servente | C15: =Servente!E135 -> 2797.26 | E15: ='Complemento Serviço Limpeza'!F17 -> 2.33 | F15: =Servente!D16 -> 2404.3 | G15: 5602.02
A16: 7 | B16: Serviços de Limpeza e Conservação - Área Externa - Servente | C16: =Servente!E135 -> 2797.26 | E16: ='Complemento Serviço Limpeza'!F25 -> 0.1 | F16: =Servente!D17 -> 217761.15 | G16: 21776.12
A17: 8 | B17: Serviços de Limpeza e Conservação - Esquadrias Internas e Externas - Servente | C17: =Servente!E135 -> 2797.26 | E17: ='Complemento Serviço Limpeza'!G35 -> 0.54 | F17: =Servente!D18 -> 50.33 | G17: 27.18
A18: Valor Mensal dos Serviços | G18: =SUM(G12:G17) -> 32424.3

Sheet Complemento Serviço Limpeza
A7: PORTARIA Nº 07 DE 09/03/2011 - SLTI/MPOG
A8: COMPLEMENTO DOS SERVIÇOS DE LIMPEZA E CONSERVAÇÃO | I8: area interna | J8: =2454.63-50.33 -> 2404.3 | K8: =J8/3 -> 801.4333333 | L8: =J8/2 -> 1202.15
A9: Prestação de serviços no CIRPA - Bebedouro (3º CIB)
A10: PREÇO MENSAL UNITÁRIO POR METRO QUADRADO (m²) | I10: area externa | J10: 217761.15 | K10: =J10/8 -> 27220.14375
A12: A - ÁREA INTERNA COM INSALUBRIDADE | I12: esquadrias | J12: 50.33
A13: MÃO-DE-OBRA | B13: PRODUTIVIDADE | D13: PREÇO HOMEM-MÊS | F13: SUBTOTAL | I13: qtd
B14: ( 1 / m² ) | D14: ( R$ ) | F14: (R$ / m² ) | H14: encarregado | I14: 1
B15: ( 1 ) | D15: ( 2 ) | F15: (3 = 1 x 2) | H15: servente | L15: 1200
A16: Encarregado | B16: 1 / (5 x 2405) | D16: =Encarregado!E130 -> 3249.81 | F16: =D16*(1/(L16)) -> 0.27 | L16: =2405*5 -> 12025
A17: Servente | B17: 1 / 1200 | D17: =Servente!E135 -> 2797.26 | F17: =D17*(1/L15) -> 2.33 | I17: =G56 -> 0 | L17: 220
A18: TOTAL (Área Tipo "A") | F18: =F16+F17 -> 2.6
A20: B - ÁREA EXTERNA COM INSALUBRIDADE
A21: MÃO-DE-OBRA | B21: PRODUTIVIDADE | D21: PREÇO HOMEM-MÊS | F21: SUBTOTAL | M21: 217760
B22: ( 1 / m² ) | D22: ( R$ ) | F22: (R$ / m² ) | L22: 217760 | M22: =M21/2 -> 108880
B23: ( 1 ) | D23: ( 2 ) | F23: (3 = 1 x 2) | L23: 28250
A24: Encarregado | B24: 1 / ( 217760) | D24: =Encarregado!E130 -> 3249.81 | F24: =ROUND((1/(L22))*D24,3) -> 0.02
A25: Servente | B25: 1 /28250 | D25: =Servente!E135 -> 2797.26 | F25: =D25*(1/L23) -> 0.1
A26: TOTAL (Área Tipo "B") | F26: =ROUND(SUM(F24:F25),4) -> 0.12
A28: C - ESQUADRIAS INTERNAS E EXTERNAS
A29: MÃO-DE-OBRA | B29: PRODUTIVIDADE | C29: FREQUÊNCIA NO MÊS (HORA) | D29: JORNADA DE TRABALHO NO MÊS (HORAS) 1/188,76 | E29: (1x2x3) Ki | F29: PREÇO HOMEM-MÊS | G29: SUBTOTAL
B31: ( 1 / m² ) | F31: ( R$ ) | G31: (R$ / m² )
B32: ( 1 ) | C32: ( 2 ) | D32: ( 3 ) | E32: ( 4 ) | F32: ( 5 ) | G32: (6 = 4 x 5)
A33: Encarregado | B33: 1 / 300 | C33: 5.1 | D33: =1/188.76 -> 0.005298 | E33: =(1/I33)*C33*D33 -> 9.01e-05 | F33: =Encarregado!E130 -> 3249.81 | G33: =E33*F33 -> 0.29 | I33: 300
I34: 300
A35: Servente | B35: 1 / 300 | C35: 11 | D35: =1/188.76 -> 0.005298 | E35: =(1/I34)*C35*D35 -> 0.000194 | F35: =Servente!E135 -> 2797.26 | G35: =E35*F35 -> 0.54
A37: TOTAL (Área Tipo "C") | G37: =SUM(G33:G35) -> 0.83
A39: II - VALOR MENSAL DOS SERVIÇOS DE CONSERVAÇÃO E LIMPEZA
A40: TIPO DE ÁREA | B40: PREÇO MENSAL UNITÁRIO | D40: ÁREA | F40: SUBTOTAL
B42: (R$ / m²) | D42: ( m² ) | F42: (R$)
A43: A - Interna c/Insalubridade | B43: =F18 -> 2.6 | D43: ='Cálculo das Áreas'!C16 -> 2404.3 | F43: =ROUND(B43*D43,2) -> 6251.18
A44: B - Externa c/ Insalubridade | B44: =F26 -> 0.12 | D44: ='Cálculo das Áreas'!D11 -> 217761.15 | F44: =ROUND(B44*D44,2) -> 26131.34
A45: C - Esquadrias Internas e Externas | B45: =G37 -> 0.83 | D45: ='Cálculo das Áreas'!E16 -> 50.33 | F45: =ROUND(B45*D45,2) -> 41.77
A46: D - Serviços (Outros) | B46: 0 | D46: 0 | F46: =B46*D46 -> 0
A47: TOTAL MENSAL DOS SERVIÇOS | F47: =F43+F44+F45 -> 32424.29 | I47: 31892.64

Sheet Cálculo das Áreas
A7: AREA ÚTIL EM M²
C8: AREAS | G8: EFETIVOS (Por indice de produtividade mínima)
G9: 687 | H9: 29500 | I9: =Servente!I18 -> 200
A10: ITEM | B10: UNIDADE* | C10: INTERNA | D10: EXTERNA | E10: ESQUADRIAS | F10: TOTAL | G10: INTERNA | H10: EXTERNA | I10: ESQUADRIAS | J10: TOTAL
A11: 1 | C11: =Servente!D16 -> 2404.3 | D11: =Servente!D17 -> 217761.15 | E11: =Servente!D18 -> 50.33 | F11: =SUM(C11:E11) -> 220215.78 | G11: =SUM(C11/G$9) -> 3.5 | H11: 7.38 | I11: =E11/I9 -> 0.25 | J11: =G11+H11+I11 -> 11.13
A12: 2 | F12: =SUM(C12:E12) -> 0 | G12: 0 | H12: 0 | I12: =SUM(D12/I$9) -> 0 | J12: =G12+H12+I12 -> 0
A13: 3 | F13: =SUM(C13:E13) -> 0 | G13: 0 | H13: 0 | I13: =SUM(D13/I$9) -> 0 | J13: =G13+H13+I13 -> 0
A14: 4 | F14: =SUM(C14:E14) -> 0 | G14: 0 | H14: 0 | I14: =SUM(D14/I$9) -> 0 | J14: =G14+H14+I14 -> 0
A15: 5 | F15: =SUM(C15:E15) -> 0 | G15: 0 | H15: 0 | I15: =SUM(D15/I$9) -> 0 | J15: =G15+H15+I15 -> 0
A16: TOTAL DE ÁREA ÚTIL | C16: =SUM(C11:C15) -> 2404.3 | D16: 217761.15 | E16: 50.33 | F16: 220215.78 | G16: 3.5 | H16: 7.38 | I16: 0.25 | J16: 11.13
A18: * Estão sendo consideradas as produtividades de 1200m² para áreas internas, 28250 m² para áreas externas e 300 m² para áreas de esquadrias internas e externas.
A19: * Os valores com decimais serão arredondados para o inteiro anterior.
E23: =C11/10 -> 240.43
E24: =Encarregado!E130 -> 3249.81
E25: =Servente!E135 -> 2797.26 | F25: =E25*10 -> 27972.6
F26: =E24+F25 -> 31222.41 | G26: ='Valor Global'!F16 -> 32424.3
H27: =G26-E24 -> 29174.49 | I27: =H27/E25 -> 10.42966689

Sheet Encarregado
A6: A | B6: Município/UF | E6: Petrolina-PE
A7: B | B7: Ano Acordo, Convenção ou Sentença Normativa em Dissídio Coletivo | E7: 2020
A8: C | B8: Número de meses de execução contratual | E8: 12 meses
A11: IDENTIFICAÇÃO DO SERVIÇO
A12: Tipo de serviço | C12: Unidade de Medida | D12: Quantidade total a contratar (em função da unidade de medida)
A14: Encarregado | C14: Posto | D14: 1
A16: ANEXO III - A - PORTARIA Nº 07 DE 09/03/2011 - SLTI/MPOG
A17: MÃO-DE-OBRA VINCULADA À EXECUÇÃO CONTRATUAL
A19: Descrição:
A20: =Servente!A24 -> Prestação de serviços no CIRPA - Bebedouro (3º CIB)
A21: Dados complementares para composição dos custos referente à mão de obra
A22: 1 | B22: Prestação de serviços no CIRPA - Bebedouro (3º CIB) | E22: Petrolina/PE
A23: 2 | B23: Salário normativo da categoria profissional | E23: =Servente!E27*1.25 -> 1327.05
A24: 3 | B24: Categoria profissional vinculada à execução contratual (STEALMOAIC-PE) | E24: Encarregado
A25: 4 | B25: Data-base da categoria (dia/mês/ano) | E25: 2020-01-01
A28: MÓDULO 1: COMPOSIÇÃO DA REMUNERAÇÃO
A29: 1 | B29: Composição da Remuneração | E29: Valor (R$)
A30: A | B30: Salário Base | E30: =E23 -> 1327.05
A31: B | B31: Adicional de Periculosidade
A32: C | B32: =Servente!B36 -> Adicional de Insalubridade (20%) - Nota Técnica (fls. 289/548) | E32: =1039*20% -> 207.8
A33: D | B33: Adicional Noturno
A34: E | B34: Hora noturna adicional
A35: F | B35: Adicional de hora extra
A36: G | B36: Intervalo intrajornada
A37: H | B37: Outros (especificar)
A38: TOTAL DA REMUNERAÇÃO | E38: =SUM(E30:E37) -> 1534.85
A40: MÓDULO 2: BENEFÍCIOS MENSAIS E DIÁRIOS
A41: 2 | B41: Benefícios Mensais e Diários | E41: Valor (R$)
A42: A | B42: Vale Transporte (Deduzido 6% parte empregado) R$* (valor transporte)*22 (dias trab.)*2(quantidade de VT dia = - 6% do sal. Base
A43: B | B43: Auxílio alimentação (Vales, cesta básica, etc.) - CCT 2020 | E43: =Servente!E47 -> 261.7
A44: C | B44: Assistência médica e familiar - CCT 2020 | E44: =Servente!E48 -> 60
A45: D | B45: Auxílio creche
A46: E | B46: Seguro de vida, invalidez e funeral
A47: F | B47: =Servente!B51 -> Outros (especificar) - Beneficio de complementação salarial/odontologico - CCT 14ª | E47: =Servente!E51 -> 0
A48: TOTAL DE BENEFÍCIOS MENSAIS E DIÁRIOS | E48: =SUM(E42:E47) -> 321.7
A49: Nota 1: O valor informado deverá ser o custo real do insumo (descontado o valor eventualmente pago pelo empregado).
A50: Nota 2: Não existe custo com o Vale Transporte, visto que, o pessoal a ser mobilizado reside próximo ao local de trabalho.
A51: MÓDULO 3: INSUMOS DIVERSOS
A52: 3 | B52: Insumos Diversos | E52: Valor (R$)
A53: A | B53: Uniformes | E53: =Servente!E58 -> 4.27
A54: B | B54: Equipamentos - botas em PVC | E54: =Servente!E59 -> 2.51
A55: C | B55: Materiais de limpeza
A56: D | B56: Outros (especificar)
A57: TOTAL DE INSUMOS DIVERSOS | E57: =SUM(E53:E56) -> 6.78
A58: Nota: Valores mensais por empregado.
A60: MÓDULO 4: ENCARGOS SOCIAIS E TRABALHISTAS
A61: GRUPO "A"
A62: 4.1 | B62: GRUPO "A" | D62: % | E62: Valor (R$)
A63: A | B63: INSS (Art. 22 inciso I da Lei 8.212/91) | D63: 0 | E63: =D63*E38 -> 0
A64: B | B64: FGTS (Art. 15 da Lei 8030/90 art. 7° inciso III CF/88) | D64: 0.08 | E64: =D64*E38 -> 122.79
A65: C | B65: Riscos Ambientais do Trabalho - RAT x FAP - (Decreto 3.048/1999, Anexo V e Decreto 6.957/2009) | D65: 0.02 | E65: =D65*E38 -> 30.7
A66: D | B66: Salário Educação (Art. 3° inciso I Decreto 87.043/) | D66: 0.025 | E66: =D66*E38 -> 38.37
A67: E | B67: SESC/SESI (Art. 3° da Lei 8036/90) | D67: 0.015 | E67: =D67*E38 -> 23.02
A68: F | B68: SENAC/SENAI (Decreto 2.318/86) | D68: 0.01 | E68: =D68*E38 -> 15.35
A69: G | B69: SEBRAE (Art. 8° Lei 8029/90 e 8154 de 28/12/90) | D69: 0.006 | E69: =D69*E38 -> 9.21
A70: H | B70: INCRA (Lei 7787 de 30/06/890e DL 1146/70) | D70: 0.002 | E70: =D70*E38 -> 3.07
A71: TOTAL | D71: =SUM(D63:D70) -> 0.158 | E71: =SUM(E63:E70) -> 242.51
A72: Notas: - Os percentuais dos encargos previdenciários e FGTS, a serem preenchidos na coluna %, são aqueles estabelecidos pela legislação vigente.
A73: - Percentuais incidentes sobre a remuneração.
A75: GRUPO "B"
A76: B | B76: GRUPO "B" | D76: % | E76: Valor (R$)
A77: A | B77: 13º salário (1/12) | D77: 0.0833 | E77: =ROUND(D77*$E$38,2) -> 127.85
A78: B | B78: Férias (incluindo 1/3) (1/12 + (1+1/3) | D78: 0.1111 | E78: =ROUND(D78*$E$38,2) -> 170.52
A79: C | B79: Aviso prévio trabalhado | D79: 0.0002 | E79: 0.31
A80: D | B80: Auxílio-enfermidade | D80: 0.0166 | E80: 25.48
A81: E | B81: Auxílio acidente de trabalho | D81: 0.0027 | E81: 4.14
A82: F | B82: Faltas legais | D82: 0.0073 | E82: 11.2
A83: G | B83: Licença paternidade | D83: 0.0004 | E83: 0.61
A84: TOTAL | D84: =SUM(D77:D83) -> 0.2216 | E84: =SUM(E77:E83) -> 340.11
A86: GRUPO "C"
A87: C | B87: GRUPO "C" | D87: % | E87: Valor (R$)
A88: A | B88: Aviso Prévio Indenizado | D88: 0.0403 | E88: =ROUND(D88*$E$38,2) -> 61.85
A89: B | B89: Indenização adicional | D89: 0.004 | E89: =ROUND(D89*$E$38,2) -> 6.14
A90: C | B90: FGTS nas rescisões sem justa causa | D90: 0.0229 | E90: =ROUND(D90*$E$38,2) -> 35.15
A91: TOTAL | D91: =SUM(D88:D90) -> 0.0672 | E91: =SUM(E88:E90) -> 103.14
A93: GRUPO "D"
A94: D | B94: GRUPO "D" | D94: % | E94: Valor (R$)
A95: A | B95: Incidência do grupo "A" sobre o grupo "B" | D95: =D71*D84 -> 0.035 | E95: =ROUND(D95*E38,2) -> 53.72
A96: TOTAL | D96: =SUM(D95) -> 0.035 | E96: =SUM(E95) -> 53.72
A98: QUADRO-RESUMO - Módulo 4 - Encargos Sociais e Trabalhistas
A99: 4 | B99: Módulo 4 - Encargos sociais e trabalhistas | D99: % | E99: Valor (R$)
A100: 4.1 | B100: GRUPO "A" | D100: =D71 -> 0.158 | E100: =E71 -> 242.51
A101: 4.2 | B101: GRUPO "B" | D101: =D84 -> 0.2216 | E101: =E84 -> 340.11
A102: 4.3 | B102: GRUPO "C" | D102: =D91 -> 0.0672 | E102: =E91 -> 103.14
A103: 4.4 | B103: GRUPO "D" | D103: =D96 -> 0.035 | E103: =E96 -> 53.72
A104: 4.6 | B104: Outros (especificar) | D104: - | E104: 0
A105: TOTAL | D105: =SUM(D100:D104) -> 0.4818 | E105: =SUM(E100:E104) -> 739.48
A107: MÓDULO 5: BENEFÍCIO E CUSTOS INDIRETOS (BDI)
A108: 5 | B108: Benefício e Custos Indiretos - BDI | D108: % | E108: Valor (R$)
A109: A | B109: Despesas Indiretas | D109: =Servente!D114 -> 0.0111 | E109: =D109*(E38+E48+E57+E105) -> 28.89
A112: B | B112: Tributos Federais (COFINS/PIS) | D112: =Servente!D117 -> 0.0767 | E112: =E136 -> 249.26
A113: C | B113: Tributos Municipais (ISSQN ou ISS) | D113: =Servente!D118 -> 0.05 | E113: =E137 -> 162.49
A114: D | B114: Lucro | D114: =Servente!D119 -> 0.0231 | E114: =D114*(E38+E48+E57+E105) -> 60.12
A115: E | B115: CPRB sobre o faturamento | D115: 0.045 | E115: =E138 -> 146.24
A116: TOTAL | D116: =SUM(D109:D115) -> 0.2059 | E116: =SUM(E109:E115) -> 647
A117: Notas: - Custos Indiretos, Tributos e Lucro por empregado.
A118: - O valor referente a tributos é obtido aplicando-se o percentual sobre o valor do faturamento. | F118: =SUM(D110:D113) -> 0.1267 | G118: =SUM(E128+#REF!+E114)/(1-F118) -> 
A120: ANEXO III - B - PORTARIA Nº 07 DE 09/03/2011 - SLTI/MPOG
A121: Quadro Resumo do Custo por Empregado
A123: Mão de obra vinculada à execução contratual (valor por empregado) | E123: Valor (R$)
A124: A | B124: Módulo 1 – Composição da Remuneração | E124: =E38 -> 1534.85
A125: B | B125: Módulo 2 – Benefícios Mensais e Diários | E125: =E48 -> 321.7
A126: C | B126: Módulo 3 – Insumos Diversos (uniformes e outros) | E126: =E57 -> 6.78
A127: D | B127: Módulo 4 – Encargos Sociais e Trabalhistas | E127: =E105 -> 739.48
A128: Subtotal (A + B + C + D) | E128: =SUM(E124:E127) -> 2602.81
A129: E | B129: Módulo 5 – Benefício e Custos Indiretos | E129: =E116 -> 647
A130: VALOR TOTAL POR ENCARREGADO | E130: =E128+E129 -> 3249.81
B133: P0 = (MÓD 1 + MÓD 2 + MÓD 3 + MÓD 4) + (DI) + (L) | E133: =E38+E48+E57+E105+E109+E110+E111+E114 -> 2691.82
B134: P1 = P0/(1 - (PIS+COFINS+ISS+CPRB)) | E134: =E133/(1-(D112+D113+D115)) -> 3249.81
B135: T = P1 - P0 | E135: =E134-E133 -> 557.99
B136: COFINS/PIS = ((PIS+CONFINS)/(PIS+COFINS+ISS+CPRB)) x T | E136: =(D112/(D112+D113+D115))*E135 -> 249.26
B137: ISS = (ISS/(PIS+COFINS+ISS+CPRB)) x T | E137: =(D113/(D112+D113+D115))*E135 -> 162.49
B138: CPRB Sobre o Faturamento=(CPRB/(PIS+COFINS+ISS+CPRB))xT | E138: =(D115/(D112+D113+D115))*E135 -> 146.24

Sheet Servente
A8: A | B8: Município/UF | E8: Petrolina-PE
A9: B | B9: Ano Acordo, Convenção ou Sentença Normativa em Dissídio Coletivo | E9: 2020
A10: C | B10: Nº de meses de execução contratual | E10: 12 meses
S12: =E135 -> 2797.26 | U12: =[1]Encarregado!E131 -> 3801.24
A13: IDENTIFICAÇÃO DO SERVIÇO | S13: servente | U13: encarregado
A14: Tipo de serviço | C14: Unidade de Medida | D14: Quantidade total a contratar (em função da unidade de medida) | S14: R$ | T14: qtd | U14: R$ | V14: qtd
O15: total areas | P15: =D16+D17+D18 -> 220215.78 | Q15: =D16 -> 2404.3 | R15: =Q15/$P$15 -> 0.0109 | S15: =(R15*$E$135)/10 -> 3.05 | T15: =S15/R15 -> 279.82 | U15: =(R15*[1]Encarregado!$E$131) -> 41.43 | V15: =$U$12/U15 -> 91.75
A16: Limpeza e conservação - Áreas Internas | C16: m2 | D16: 2404.3 | I16: =D16/3 -> 801.43 | K16: =801 -> 801 | L16: =D16/K16 -> 3.001622971 | Q16: =D17 -> 217761.15 | R16: =Q16/$P$15 -> 0.9889 | S16: =(R16*$E$135)/10 -> 276.62 | T16: =$S$12/S16 -> 10.11 | U16: =(R16*U12) -> 3759.05 | V16: =$U$12/U16 -> 1.01
A17: Limpeza e conservação - Áreas Externas | C17: m2 | D17: 217761.15 | I17: =D17/7 -> 31108.74 | K17: 31110 | L17: =D17/K17 -> 6.999715526 | Q17: =D18 -> 50.33 | R17: =Q17/$P$15 -> 0.0002 | S17: =(R17*$E$135)/10 -> 0.06 | T17: =$S$12/S17 -> 46621 | U17: =(R17*[1]Encarregado!$E$131) -> 0.76 | V17: =$U$12/U17 -> 5001.63
A18: Limpeza e conservação - Esquadrias | C18: m2 | D18: 50.33 | I18: =200/1 -> 200 | K18: =1/200 -> 0.005 | L18: =1/200 -> 0.005 | S18: =(R18*$E$135)/10 -> 0
L19: =SUM(L16:L18) -> 10.0063385
A20: ANEXO III - A - PORTARIA Nº 07 DE 09/03/2011 - SLTI/MPOG
A21: MÃO-DE-OBRA VINCULADA À EXECUÇÃO CONTRATUAL
L22: =D17/7 -> 31108.73571 | Q22: =S12*10 -> 27972.6
A23: Descrição: | Q23: =U12 -> 3801.24
A24: Prestação de serviços no CIRPA - Bebedouro (3º CIB) | Q24: =ROUND((Q23+Q22),2) -> 31773.84 | S24: =ROUND(($Q$24*R15),2) -> 346.33
A25: Dados complementares para composição dos custos referente à mão de obra | S25: =ROUND(($Q$24*R16),2) -> 31421.15
A26: 1 | B26: Prestação de serviços no CIRPA - Bebedouro (3º CIB) | E26: Petrolina/PE | K26: =1/200 -> 0.005 | S26: =ROUND(($Q$24*R17),2) -> 6.35
A27: 2 | B27: Salário normativo da categoria profissional | E27: 1061.64
A28: 3 | B28: Categoria profissional vinculada à execução contratual (STEALMOAIC-PE) | E28: Servente
A29: 4 | B29: Data-base da categoria (dia/mês/ano) | E29: 2020-01-01
A30: * Utilizada como base para o reajuste da categoria profissional previsto nos Acordos, Convenções ou Sentenças Normativas em Dissídios Coletivos.
A32: MÓDULO 1: COMPOSIÇÃO DA REMUNERAÇÃO
A33: 1 | B33: Composição da Remuneração | E33: Valor (R$)
A34: A | B34: Salário Base | E34: =E27 -> 1061.64
A35: B | B35: Adicional de Periculosidade
A36: C | B36: Adicional de Insalubridade (20%) - Nota Técnica (fls. 289/548) | E36: =1039*20% -> 207.8
A37: D | B37: Adicional Noturno
A38: E | B38: Hora noturna adicional
A39: F | B39: Adicional de hora extra
A40: G | B40: Intervalo intrajornada
A41: H | B41: Outros (especificar)
A42: TOTAL DA REMUNERAÇÃO | E42: =SUM(E34:E41) -> 1269.44
A44: MÓDULO 2: BENEFÍCIOS MENSAIS E DIÁRIOS
A45: 2 | B45: Benefícios Mensais e Diários | E45: Valor (R$)
A46: A | B46: Vale Transporte (Deduzido 6% parte empregado) * (valor transporte)*22 (dias trab.)*2(quantidade de VT dia = - 6% do sal. Base | I46: =E34*6% -> 63.7 | J46: =7*2*22 -> 308
A47: B | B47: Auxílio alimentação (Vales, cesta básica, etc.) - CCT 2020 | E47: =(7.35*22)+100 -> 261.7
A48: C | B48: Assistência médica e familiar - CCT 2020 | E48: 60
A49: D | B49: Auxílio creche
A50: E | B50: Seguro de vida, invalidez e funeral
A51: F | B51: Outros (especificar) - Beneficio de complementação salarial/odontologico - CCT 14ª | E51: 0
A52: TOTAL DE BENEFÍCIOS MENSAIS E DIÁRIOS | E52: =SUM(E46:E51) -> 321.7
A53: Nota 1: O valor informado deverá ser o custo real do insumo (descontado o valor eventualmente pago pelo empregado).
A54: Nota 2: Não existe custo com o Vale Transporte, visto que, o pessoal a ser mobilizado reside próximo ao local de trabalho.
A56: MÓDULO 3: INSUMOS DIVERSOS
A57: 3 | B57: Insumos Diversos | E57: Valor (R$)
A58: A | B58: Uniformes | E58: 4.27
A59: B | B59: Equipamentos - botas em PVC | E59: 2.51 | I59: 345621.11
A60: C | B60: Materiais de limpeza | E60: 30.92 | I60: ='Valor Global'!F17 -> 389091.6
A61: D | B61: Outros (especificar) | J61: =I59-I60 -> -43470.49
A62: TOTAL DE INSUMOS DIVERSOS | E62: =SUM(E58:E61) -> 37.7
A65: MÓDULO 4: ENCARGOS SOCIAIS E TRABALHISTAS
A66: GRUPO "A"
A67: 4.1 | B67: GRUPO "A" | D67: % | E67: Valor (R$)
A68: A | B68: INSS (Art. 22 inciso I da Lei 8.212/91) | D68: 0 | E68: =D68*E42 -> 0
A69: B | B69: FGTS (Art. 15 da Lei 8030/90 art. 7° inciso III CF/88) | D69: 0.08 | E69: =ROUND(D69*$E$42,2) -> 101.56
A70: C | B70: Riscos Ambientais do Trabalho - RAT x FAP - (Decreto 3.048/1999, Anexo V e Decreto 6.957/2009) | D70: 0.02 | E70: =ROUND(D70*$E$42,2) -> 25.39
A71: D | B71: Salário Educação (Art. 3° inciso I Decreto 87.043/) | D71: 0.025 | E71: 31.74
A72: E | B72: SESC/SESI (Art. 3° da Lei 8036/90) | D72: 0.015 | E72: 19.04
A73: F | B73: SENAC/SENAI (Decreto 2.318/86) | D73: 0.01 | E73: 12.69
A74: G | B74: SEBRAE (Art. 8° Lei 8029/90 e 8154 de 28/12/90) | D74: 0.006 | E74: 7.62
A75: H | B75: INCRA (Lei 7787 de 30/06/890e DL 1146/70) | D75: 0.002 | E75: 2.54
A76: TOTAL | D76: =SUM(D68:D75) -> 0.158 | E76: =SUM(E68:E75) -> 200.58
A77: Notas: - Os percentuais dos encargos previdenciários e FGTS, a serem preenchidos na coluna %, são aqueles estabelecidos pela legislação vigente.
A78: - Percentuais incidentes sobre a remuneração.
A80: GRUPO "B"
A81: B | B81: GRUPO "B" | D81: % | E81: Valor (R$)
A82: A | B82: 13º salário (1/12) | D82: =1/12 -> 0.0833 | E82: =ROUND(D82*$E$42,2) -> 105.74
A83: B | B83: Férias (incluindo 1/3) (1/12 + (1+1/3) | D83: 0.1111 | E83: =ROUND(D83*$E$42,2) -> 141.03
A84: C | B84: Aviso prévio trabalhado | D84: 0.0002 | E84: 0.25
A85: D | B85: Auxílio-enfermidade | D85: 0.0166 | E85: 21.07
A86: E | B86: Auxílio acidente de trabalho | D86: 0.0027 | E86: 3.43
A87: F | B87: Faltas legais | D87: 0.0073 | E87: 9.27
A88: G | B88: Licença paternidade | D88: 0.0004 | E88: 0.51
A89: TOTAL | D89: =SUM(D82:D88) -> 0.2216 | E89: =SUM(E82:E88) -> 281.3
A91: GRUPO "C"
A92: C | B92: GRUPO "C" | D92: % | E92: Valor (R$)
A93: A | B93: Aviso Prévio Indenizado | D93: 0.0403 | E93: =ROUND(D93*$E$42,2) -> 51.16
A94: B | B94: Indenização adicional | D94: 0.004 | E94: =ROUND(D94*$E$42,2) -> 5.08
A95: C | B95: FGTS nas rescisões sem justa causa | D95: 0.0229 | E95: =ROUND(D95*$E$42,2) -> 29.07
A96: TOTAL | D96: =SUM(D93:D95) -> 0.0672 | E96: =SUM(E93:E95) -> 85.31
A98: GRUPO "D"
A99: D | B99: GRUPO "D" | D99: % | E99: Valor (R$)
A100: A | B100: Incidência do grupo "A" sobre o grupo "B" | D100: =D76*D89 -> 0.035 | E100: =D100*E42 -> 44.43
A101: TOTAL | D101: =SUM(D100) -> 0.035 | E101: =SUM(E100) -> 44.43
A103: QUADRO-RESUMO - Módulo 4 - Encargos Sociais e Trabalhistas
A104: 4 | B104: Módulo 4 - Encargos sociais e trabalhistas | D104: % | E104: Valor (R$)
A105: 4.1 | B105: GRUPO "A" | D105: =D76 -> 0.158 | E105: =E76 -> 200.58
A106: 4.2 | B106: GRUPO "B" | D106: =D89 -> 0.2216 | E106: =E89 -> 281.3
A107: 4.3 | B107: GRUPO "C" | D107: =D96 -> 0.0672 | E107: =E96 -> 85.31
A108: 4.4 | B108: GRUPO "D" | D108: =D101 -> 0.035 | E108: =E101 -> 44.43
A109: 4.6 | B109: Outros (especificar) | D109: - | E109: 0
A110: TOTAL | D110: =SUM(D105:D109) -> 0.4818 | E110: =SUM(E105:E109) -> 611.62
A112: MÓDULO 5: BENEFÍCIO E CUSTOS INDIRETOS (BDI)
A113: 5 | B113: Benefício e Custos Indiretos - BDI | D113: % | E113: Valor (R$)
A114: A | B114: Despesas Indiretas | D114: 0.01105 | E114: =D114*(E42+E52+E62+E110) -> 24.76
A117: B | B117: Tributos Federais (COFINS/PIS) | D117: =1.37%+6.3% -> 0.0767 | E117: =E140 -> 214.55 | J117: =1.65+7.6 -> 9.25
A118: C | B118: Tributos Municipais (ISSQN ou ISS) | D118: 0.05 | E118: =E141 -> 139.86
A119: D | B119: Lucro | D119: 0.0231 | E119: =D119*(E42+E52+E62+E110) -> 51.75 | F119: =SUM(D115:D118) -> 0.1267 | G119: =SUM(E133+#REF!+E119)/(1-F119) -> 
A120: E | B120: CPRB sobre o faturamento | D120: 0.045 | E120: =E142 -> 125.88 | I120: =I60 -> 389091.6
A121: TOTAL | D121: =SUM(D114:D120) -> 0.2059 | E121: =SUM(E114:E120) -> 556.8
A122: Notas: - Custos Indiretos, Tributos e Lucro por empregado.
A123: - O valor referente a tributos é obtido aplicando-se o percentual sobre o valor do faturamento.
A125: ANEXO III - B - PORTARIA Nº 07 DE 09/03/2011 - SLTI/MPOG
A126: Quadro Resumo do Custo por Empregado
A128: Mão de obra vinculada à execução contratual (valor por empregado) | E128: Valor (R$)
A129: A | B129: Módulo 1 – Composição da Remuneração | E129: =E42 -> 1269.44
A130: B | B130: Módulo 2 – Benefícios Mensais e Diários | E130: =E52 -> 321.7
A131: C | B131: Módulo 3 – Insumos Diversos (uniformes e outros) | E131: =E62 -> 37.7
A132: D | B132: Módulo 4 – Encargos Sociais e Trabalhistas | E132: =E110 -> 611.62
A133: Subtotal (A + B + C + D) | E133: =SUM(E129:E132) -> 2240.46
A134: E | B134: Módulo 5 – Benefício e Custos Indiretos | E134: =E121 -> 556.8
A135: VALOR TOTAL POR SERVENTE | E135: =E133+E134 -> 2797.26
B137: P0 = (MÓD 1 + MÓD 2 + MÓD 3 + MÓD 4) + (DI) + (L) | E137: =E42+E52+E62+E110+E114+E115+E116+E119 -> 2316.97
B138: P1 = P0/(1 - (PIS+COFINS+ISS+CPRB)) | E138: =E137/(1-(D117+D118+D120)) -> 2797.26
B139: T = P1 - P0 | E139: =E138-E137 -> 480.29
B140: COFINS/PIS = ((PIS+CONFINS)/(PIS+COFINS+ISS+CPRB)) x T | E140: =(D117/(D117+D118+D120))*E139 -> 214.55
B141: ISS = (ISS/(PIS+COFINS+ISS+CPRB)) x T | E141: =(D118/(D117+D118+D120))*E139 -> 139.86
B142: CPRB Sobre o Faturamento=(CPRB/(PIS+COFINS+ISS+CPRB))xT | E142: =(D120/(D117+D118+D120))*E139 -> 125.88
